fUST/lending_fUST_20250429
["ID","MTS","AMOUNT","RATE_DAILY","PERIOD"]
[359244282,1745862633272,-1247.68955766,0.00027517,2]
[359244283,1745862633283,-1247.68955766,0.00027517,2]
[359244284,1745862633292,-1247.68955766,0.00027517,2]
[359244285,1745862633303,-1247.68955766,0.00027517,2]
[359244286,1745862633312,-1247.68955766,0.00027517,2]
[359244287,1745862633323,-1247.68955766,0.00027517,2]
[359244288,1745862633333,-1247.68955766,0.00027517,2]
[359244289,1745862633343,-1247.68955766,0.00027517,2]
[359244290,1745862633353,-1247.68955766,0.00027517,2]
[359244291,1745862633363,-1247.68955766,0.00027517,2]
[359244292,1745862633375,-1247.68955766,0.00027517,2]
[359244293,1745862633386,-1247.68955766,0.00027517,2]
[359244294,1745862633397,-1247.68955766,0.00027517,2]
[359244295,1745862633406,-1247.68955766,0.00027517,2]
[359244296,1745862633416,-1247.68955766,0.00027517,2]
[359244297,1745862633426,-1247.68955766,0.00027517,2]
[359244298,1745862633439,-1247.68955766,0.00027517,2]
[359244299,1745862633449,-1247.68955766,0.00027517,2]
[359244300,1745862633459,-1247.68955766,0.00027517,2]
[359244301,1745862633469,-1247.68955766,0.00027517,2]
[359244302,1745862633479,-1247.68955766,0.00027517,2]
[359244303,1745862633489,-1247.68955766,0.00027517,2]
[359244304,1745862633499,-1247.68955766,0.00027517,2]
[359244305,1745862633509,-2765.09037403,0.00027517,2]
[359244306,1745862633518,-2765.09037403,0.00027517,2]
[359244307,1745862633527,-2765.09037403,0.00027517,2]
[359244308,1745862633537,-2765.09037403,0.00027517,2]
[359244309,1745862633547,-2765.09037403,0.00027517,2]
[359244310,1745862633558,-2765.09037403,0.00027517,2]
[359244311,1745862633568,-2765.09037403,0.00027517,2]
[359244312,1745862633578,-2765.09037403,0.00027517,2]
[359244313,1745862633587,-2765.09037403,0.00027517,2]
[359244314,1745862633596,-2765.09037403,0.00027517,2]
[359244315,1745862633606,-2765.09037403,0.00027517,2]
[359244316,1745862633615,-2765.09037403,0.00027517,2]
[359244317,1745862633626,-2765.09037403,0.00027517,2]
[359244318,1745862633635,-2765.09037403,0.00027517,2]
[359244319,1745862633644,-2765.09037403,0.00027517,2]
[359244320,1745862633654,-2765.09037403,0.00027517,2]
[359244321,1745862633664,-927.1849064,0.00027517,2]
[359244322,1745862633679,-1837.90546763,0.00027517,2]
[359244323,1745862633689,-2765.09037403,0.00027517,2]
[359244324,1745862633699,-2765.09037403,0.00027517,2]
[359244325,1745862633709,-2765.09037403,0.00027517,2]
[359244326,1745862633718,-2765.09037403,0.00027517,2]
[359244327,1745862633728,-2765.09037403,0.00027517,2]
[359244328,1745862633738,-2765.09037403,0.00027517,2]
[359244329,1745862633748,-2765.09037403,0.00027517,2]
[359244330,1745862633758,-2765.09037403,0.00027517,2]
[359244331,1745862633768,-2765.09037403,0.00027517,2]
[359244332,1745862633778,-2765.09037403,0.00027517,2]
[359244333,1745862633787,-2765.09037403,0.00027517,2]
[359244334,1745862633797,-2765.09037403,0.00027517,2]
[359244335,1745862633807,-2765.09037403,0.00027517,2]
[359244336,1745862633817,-2765.09037403,0.00027517,2]
[359244337,1745862633827,-2765.09037402,0.00027517,2]
[359244338,1745862633837,-2765.09037402,0.00027517,2]
[359244339,1745862633846,-2765.09037402,0.00027517,2]
[359244340,1745862633855,-2765.09037402,0.00027517,2]
[359244341,1745862633865,-2765.09037402,0.00027517,2]
[359244342,1745862633877,-19603.8701695,0.00027519,2]
[359244343,1745862633886,-500.0,0.00027573,5]
[359244344,1745862633896,-500.0,0.00027573,5]
[359244345,1745862633906,-500.0,0.00027573,2]
[359244346,1745862633916,-500.0,0.00027573,5]
[359244347,1745862633926,-500.0,0.00027573,5]
[359244348,1745862633936,-500.0,0.00027573,5]
[359244349,1745862633948,-500.0,0.00027573,5]
[359244350,1745862633957,-500.0,0.00027573,5]
[359244351,1745862633966,-509.62149181,0.00027573,5]
[359244352,1745862633976,-500.0,0.00027573,5]
[359244353,1745862633987,-1985.5387592,0.00027587,2]
[359244354,1745862633996,-403.0,0.00027705,2]
[359244355,1745862634006,-613.49608928,0.000288,5]
[359244356,1745862634015,-840.59878455,0.00028893,2]
[359244357,1745862634026,-421.20781996,0.00028897,2]
[359244358,1745862634035,-160.0,0.00028897,2]
[359244359,1745862634045,-160.0,0.00028897,2]
[359244360,1745862634055,-160.0,0.00028902,2]
[359244361,1745862634066,-1137.7776405,0.00028924,3]
[359244362,1745862634076,-300.71460877,0.00028963,2]
[359244363,1745862634086,-356.23862748,0.00028971,2]
[359244364,1745862634097,-400.0,0.00028971,2]
[359244365,1745862634107,-400.0,0.00028971,2]
[359244366,1745862634117,-400.0,0.00028971,2]
[359244367,1745862634128,-400.0,0.00028971,2]
[359244368,1745862634138,-400.0,0.00028971,2]
[359244369,1745862634147,-400.0,0.00028971,2]
[359244370,1745862634158,-500.0,0.00028971,2]
[359244371,1745862634167,-173.84116303,0.00028971,2]
[359244372,1745862634177,-400.0,0.00028971,2]
[359244373,1745862634187,-400.0,0.00028971,2]
[359244374,1745862634196,-400.0,0.00028971,2]
[359244375,1745862634206,-400.0,0.00028971,2]
[359244376,1745862634215,-500.0,0.00028973,5]
[359244377,1745862634225,-500.0,0.00028973,5]
[359244378,1745862634235,-259.47357438,0.00028973,5]
[359244379,1745862634244,-500.0,0.00028973,5]
[359244380,1745862634254,-500.0,0.00028973,5]
[359244381,1745862634264,-434.10576274,0.00028973,5]
[359244382,1745862634274,-503.58110984,0.00028973,5]
[359244383,1745862634284,-500.0,0.00028973,5]
[359244384,1745862634294,-500.0,0.00028973,5]
[359244385,1745862634304,-2442.4196938,0.0002899,2]
[359244386,1745862634313,-400.0,0.00028996,2]
[359244387,1745862634323,-400.0,0.00028996,2]
[359244388,1745862634334,-484.15,0.00028996,2]
[359244389,1745862634344,-400.0,0.00028996,2]
[359244390,1745862634353,-400.0,0.00028996,2]
[359244391,1745862634363,-436.70555918,0.00028996,2]
[359244392,1745862634374,-400.0,0.00028996,2]
[359244393,1745862634384,-400.0,0.00028996,2]
[359244394,1745862634393,-400.0,0.00028996,2]
[359244395,1745862634403,-400.0,0.00028996,2]
[359244396,1745862634414,-400.0,0.00028996,2]
[359244397,1745862634424,-400.0,0.00028996,2]
[359244398,1745862634434,-400.0,0.00028996,2]
[359244399,1745862634444,-400.0,0.00028996,2]
[359244400,1745862634453,-400.0,0.00028996,2]
[359244401,1745862634463,-400.0,0.00028996,2]
[359244402,1745862634474,-400.0,0.00028996,2]
[359244403,1745862634484,-400.0,0.00028996,2]
[359244404,1745862634494,-400.0,0.00028996,2]
[359244405,1745862634504,-400.0,0.00028996,2]
[359244406,1745862634514,-400.0,0.00028996,2]
[359244407,1745862634523,-400.0,0.00028996,2]
[359244408,1745862634533,-400.0,0.00028996,2]
[359244409,1745862634543,-400.0,0.00028996,2]
[359244410,1745862634553,-400.0,0.00028996,2]
[359244411,1745862634563,-400.0,0.00028996,2]
[359244412,1745862634573,-400.0,0.00028996,2]
[359244413,1745862634583,-229.15426283,0.00028996,2]
[359244414,1745862634592,-400.0,0.00028998,2]
[359244415,1745862634602,-262.23750346,0.00028998,2]
[359244416,1745862634611,-244.58820008,0.00028998,2]
[359244417,1745862634622,-400.0,0.00028998,2]
[359244418,1745862634632,-2713.14,0.00028998,2]
[359244419,1745862634641,-27493.30271678,0.00029,7]
[359244420,1745862634651,-9984.79212229,0.00029,7]
[359244421,1745862634728,-17508.51059449,0.00029,7]
[359244422,1745862634738,-421.20781996,0.00029,7]
[359244423,1745862634748,-348.586916,0.00029,7]
[359244424,1745862634759,-492.01186855,0.00029,7]
[359244425,1745862634769,-289.45,0.00029245,2]
[359244426,1745862634778,-151.22,0.00029272,2]
[359244427,1745862634788,-400.0,0.00029272,2]
[359244428,1745862634798,-2713.14,0.00029272,2]
[359244429,1745862634807,-2014.58822835,0.00029546,2]
[359244430,1745862634818,-586.24138883,0.00029546,2]
[359244431,1745862634830,-112.31038282,0.00029546,2]
[359244432,1745862634839,-614.7975858,0.0002982,2]
[359244433,1745862634850,-2098.3424142,0.0002982,2]
[359244434,1745862634862,-2442.4196938,0.0002998,2]
[359244435,1745862634873,-500.0,0.0002999,11]
[359244436,1745862634884,-2713.14,0.00030094,2]
[359244437,1745862634894,-2713.14,0.00030368,2]
[359244438,1745862634903,-2713.14,0.00030642,2]
[359244439,1745862634913,-403.0,0.00030705,2]
[359244440,1745862634923,-239.4335486,0.000309,9]
[359244441,1745862634933,-2713.14,0.00030916,2]
[359244442,1745862634946,-407.24286338,0.0003119,2]
[359244447,1745862638546,-2060.0,0.0003119,2]
[359244448,1745862638558,-245.89713662,0.0003119,2]
[359244449,1745862638568,-2713.14,0.00031464,2]
[359244450,1745862638577,-1512.61487886,0.00031738,2]
[359244451,1745862638597,-474.55340243,0.00031738,2]
[359244452,1745862638652,-725.97171871,0.00031738,2]
[359244453,1745862638661,-809.298839,0.00031963,120]
[359244454,1745862638670,-2713.14,0.00032012,2]
[359244455,1745862638679,-2713.14,0.00032286,2]
[359244456,1745862638688,-250.468,0.00032326,32]
[359244457,1745862638696,-2713.14,0.0003256,2]
[359244458,1745862638705,-2713.14,0.00032834,2]
[359244459,1745862638714,-980.84,0.000329,2]
[359244460,1745862638723,-1000.0,0.00033052,5]
[359244461,1745862638732,-1000.0,0.00033052,5]
[359244462,1745862638741,-2713.14,0.00033108,2]
[359244463,1745862638750,-179.82017982,0.00033129,10]
[359244464,1745862638759,-567.4896,0.00033165,2]
[359244466,1745862638772,-2713.14,0.00033382,2]
[359244467,1745862638781,-2713.14,0.00033656,2]
[359244468,1745862638792,-403.0,0.00033705,2]
[359244469,1745862638801,-2713.14,0.0003393,2]
[359244470,1745862638811,-2713.14,0.00034204,2]
[359244471,1745862638821,-1000.0,0.00034452,5]
[359244472,1745862638831,-1000.0,0.00034452,5]
[359244473,1745862638840,-2713.14,0.00034478,2]
[359244474,1745862638850,-2713.14,0.00034752,2]
[359244475,1745862638860,-160.347472,0.00034785,2]
[359244476,1745862638870,-239.4335486,0.000349,12]
[359244477,1745862638880,-2713.14,0.00035026,2]
[359244478,1745862638890,-2713.30626084,0.00035299,2]
[359244479,1745862638900,-161.02452369,0.00036519,2]
[359244480,1745862638909,-809.298839,0.0003653,120]
[359244481,1745862638919,-403.0,0.00036705,2]
[359244482,1745862638928,-1135.0193203,0.00037492,4]
[359244483,1745862638938,-185.82119952,0.00037832,2]
[359244484,1745862638950,-400.0,0.00037832,2]
[359244485,1745862638959,-400.0,0.00037832,2]
[359244486,1745862638969,-400.0,0.00037832,2]
[359244487,1745862638979,-400.0,0.00037832,2]
[359244488,1745862638989,-400.0,0.00037832,2]
[359244489,1745862638999,-400.0,0.00037832,2]
[359244490,1745862639008,-425.6,0.00037832,2]
[359244491,1745862639019,-400.0,0.00037832,2]
[359244492,1745862639029,-400.0,0.00037832,2]
[359244493,1745862639038,-400.0,0.00037832,2]
[359244494,1745862639047,-316.8311321,0.00037832,2]
[359244495,1745862639056,-400.0,0.00037832,2]
[359244496,1745862639065,-340.88506882,0.00037832,2]
[359244497,1745862639074,-400.0,0.00038106,2]
[359244498,1745862639083,-400.0,0.00038106,2]
[359244499,1745862639093,-216.41817735,0.00038356,2]
[359244500,1745862639102,-201.00147124,0.00038356,5]
[359244501,1745862639112,-400.0,0.0003838,2]
[359244502,1745862639122,-153.0,0.0003841,30]
[359244503,1745862639132,-153.0,0.0003841,30]
[359244504,1745862639142,-153.0,0.0003841,30]
[359244505,1745862639152,-153.0,0.0003841,30]
[359244506,1745862639162,-2442.4196938,0.00038748,3]
[359244507,1745862639172,-218.75973248,0.00038757,15]
[359244508,1745862639182,-171.99627826,0.00038757,7]
[359244509,1745862639192,-453.58492584,0.00038757,15]
[359244510,1745862639202,-179.89927043,0.00038757,15]
[359244511,1745862639212,-500.0,0.00038757,15]
[359244512,1745862639223,-479.74050935,0.00038757,15]
[359244513,1745862639233,-1247.68955766,0.00038757,2]
[359244514,1745862639242,-563.2749766,0.00038757,2]
[359244515,1745862639255,-684.41458106,0.00038757,2]
[359244516,1745862639265,-1171.68541894,0.00038757,2]
[359244522,1745862641056,-76.00413872,0.00038757,2]
[359244523,1745862641066,-654.04483323,0.00038757,2]
[359244525,1745862644136,-160.347472,0.00036437,2]
[359244526,1745862644146,-577.98,0.00038748,3]
[359244527,1745862644156,-593.64472443,0.00038757,2]
[359244528,1745862644166,-1247.68955766,0.00038757,2]
[359244530,1745862644176,-1247.68955766,0.00038757,2]
[359244532,1745862644185,-1247.68955766,0.00038757,2]
[359244533,1745862644195,-1247.68955766,0.00038757,2]
[359244534,1745862644204,-1247.68955766,0.00038757,2]
[359244535,1745862644213,-2765.09037403,0.00038757,2]
[359244536,1745862644223,-2765.09037403,0.00038757,2]
[359244537,1745862644232,-2765.09037403,0.00038757,2]
[359244538,1745862644242,-2765.09037403,0.00038757,2]
[359244539,1745862644251,-12429.46996087,0.00038758,2]
[359244540,1745862644262,-3363.85243609,0.00038758,2]
[359244542,1745862644273,-6753.39580178,0.00038758,2]
[359244543,1745862644282,-421.20781996,0.00038758,30]
[359244544,1745862644291,-313.28589057,0.00038758,120]
[359244545,1745862644301,-10380.15928322,0.00038758,20]
[359244547,1745862646638,-11158890.94136373,0.00038758,20]
[359244548,1745862646703,-608.7673703,0.00038758,20]
[359244549,1745862646733,-12188.5318789,0.00038758,20]
[359244551,1745862646808,-1038.76889736,0.00038758,20]
[359244609,1745863831753,-186.0,0.00023,7]
[359244610,1745863831763,-1000.0,0.000239,2]
[359244611,1745863831773,-2567.31063074,0.000239,2]
[359244612,1745863831782,-300.0,0.00025737,2]
[359244613,1745863831792,-200.0,0.00025737,10]
[359244614,1745863831802,-2863.14912386,0.00025738,2]
[359244615,1745863831813,-468.04,0.00025738,2]
[359244616,1745863831825,-1183.5,0.00025738,2]
[359244617,1745863831837,-15238.27106525,0.00025738,2]
[359244672,1745863837746,-2012.93094729,0.00025738,2]
[359244674,1745863837758,-2836.5119955,0.00025738,2]
[359244676,1745863837768,-203.9892585,0.000259,6]
[359244678,1745863837778,-211.1174264,0.00026033,2]
[359244680,1745863837789,-162.864078,0.00026038,2]
[359244682,1745863837798,-162.864078,0.00026169,2]
[359244684,1745863837808,-203.98925848,0.0002642,6]
[359244686,1745863837817,-8796.40816292,0.00026519,2]
[359244688,1745863837830,-3790.51327573,0.00026519,2]
[359244690,1745863837840,-160.0,0.00026519,2]
[359244692,1745863837849,-160.0,0.00026519,2]
[359244694,1745863837858,-500.0,0.00026523,2]
[359244695,1745863837868,-446.32203681,0.00026523,2]
[359244696,1745863837877,-500.0,0.00026523,2]
[359244697,1745863837886,-500.0,0.00026523,2]
[359244698,1745863837895,-500.0,0.00026523,2]
[359244699,1745863837904,-500.0,0.00026523,2]
[359244700,1745863837914,-291.8308855,0.00026523,2]
[359244702,1745863837923,-500.0,0.00026523,2]
[359244704,1745863837932,-500.0,0.00026523,2]
[359244705,1745863837942,-500.0,0.00026523,2]
[359244706,1745863837951,-500.0,0.00026523,2]
[359244707,1745863837961,-500.0,0.00026523,2]
[359244708,1745863837970,-500.0,0.00026523,2]
[359244709,1745863837979,-500.0,0.00026523,2]
[359244710,1745863837988,-500.0,0.00026523,2]
[359244711,1745863837998,-500.0,0.00026523,2]
[359244712,1745863838007,-500.0,0.00026523,2]
[359244713,1745863838016,-500.0,0.00026523,2]
[359244714,1745863838026,-500.0,0.00026523,2]
[359244715,1745863838035,-500.0,0.00026523,2]
[359244716,1745863838044,-500.0,0.00026523,2]
[359244717,1745863838053,-500.0,0.00026523,2]
[359244718,1745863838062,-500.0,0.00026523,2]
[359244719,1745863838070,-500.0,0.00026523,2]
[359244720,1745863838080,-500.0,0.00026523,2]
[359244721,1745863838089,-500.0,0.00026523,2]
[359244722,1745863838099,-500.0,0.00026523,2]
[359244723,1745863838108,-500.0,0.00026523,2]
[359244724,1745863838117,-500.0,0.00026523,2]
[359244726,1745863838128,-500.0,0.00026523,2]
[359244728,1745863838137,-376.805892,0.00026523,2]
[359244729,1745863838147,-500.0,0.00026523,2]
[359244730,1745863838157,-500.0,0.00026523,2]
[359244731,1745863838166,-500.0,0.00026523,2]
[359244732,1745863838176,-500.0,0.00026523,2]
[359244733,1745863838186,-500.0,0.00026523,2]
[359244734,1745863838195,-500.0,0.00026523,2]
[359244735,1745863838208,-500.0,0.00026523,2]
[359244736,1745863838218,-500.0,0.00026523,2]
[359244737,1745863838227,-500.0,0.00026523,2]
[359244738,1745863838237,-500.0,0.00026523,2]
[359244739,1745863838246,-500.0,0.00026523,2]
[359244740,1745863838255,-500.0,0.00026523,2]
[359244741,1745863838264,-500.0,0.00026523,2]
[359244742,1745863838274,-500.0,0.00026523,2]
[359244743,1745863838283,-500.0,0.00026523,2]
[359244744,1745863838293,-500.0,0.00026523,2]
[359244745,1745863838302,-500.0,0.00026523,2]
[359244746,1745863838312,-500.0,0.00026523,2]
[359244747,1745863838323,-500.0,0.00026523,2]
[359244748,1745863838333,-543.96300992,0.00026523,2]
[359244749,1745863838342,-543.96300992,0.00026523,2]
[359244750,1745863838352,-543.96300992,0.00026523,2]
[359244751,1745863838363,-543.96300992,0.00026523,2]
[359244752,1745863838372,-543.96300992,0.00026523,2]
[359244753,1745863838382,-543.96300992,0.00026523,2]
[359244754,1745863838392,-543.96300992,0.00026523,2]
[359244755,1745863838402,-543.96300992,0.00026523,2]
[359244756,1745863838411,-543.96300992,0.00026523,2]
[359244757,1745863838420,-543.96300992,0.00026523,2]
[359244758,1745863838430,-543.96300992,0.00026523,2]
[359244759,1745863838440,-543.96300992,0.00026523,2]
[359244760,1745863838449,-208.78657865,0.00026523,2]
[359244761,1745863838462,-335.17643127,0.00026523,2]
[359244762,1745863838472,-543.96300992,0.00026523,2]
[359244763,1745863838481,-543.96300992,0.00026523,2]
[359244764,1745863838491,-543.96300992,0.00026523,2]
[359244765,1745863838502,-543.96300992,0.00026523,2]
[359244766,1745863838512,-543.96300992,0.00026523,2]
[359244767,1745863838521,-543.96300992,0.00026523,2]
[359244768,1745863838531,-543.96300992,0.00026523,2]
[359244769,1745863838541,-543.96300992,0.00026523,2]
[359244770,1745863838551,-543.96300992,0.00026523,2]
[359244771,1745863838560,-543.96300992,0.00026523,2]
[359244772,1745863838571,-543.96300992,0.00026523,2]
[359244773,1745863838581,-543.96300992,0.00026523,2]
[359244774,1745863838590,-543.96300992,0.00026523,2]
[359244775,1745863838600,-543.96300992,0.00026523,2]
[359244776,1745863838609,-543.96300992,0.00026523,2]
[359244777,1745863838618,-543.96300992,0.00026523,2]
[359244778,1745863838628,-543.96300992,0.00026523,2]
[359244779,1745863838638,-543.96300992,0.00026523,2]
[359244780,1745863838647,-527.22568654,0.00026523,2]
[359244781,1745863838657,-527.22568654,0.00026523,2]
[359244782,1745863838667,-527.22568654,0.00026523,2]
[359244783,1745863838677,-527.22568654,0.00026523,2]
[359244784,1745863838687,-527.22568654,0.00026523,2]
[359244785,1745863838696,-527.22568654,0.00026523,2]
[359244786,1745863838707,-527.22568654,0.00026523,2]
[359244787,1745863838716,-527.22568654,0.00026523,2]
[359244788,1745863838726,-527.22568654,0.00026523,2]
[359244789,1745863838735,-527.22568654,0.00026523,2]
[359244790,1745863838745,-527.22568654,0.00026523,2]
[359244791,1745863838754,-527.22568654,0.00026523,2]
[359244792,1745863838763,-500.0,0.00026528,2]
[359244793,1745863838772,-400.0,0.00026528,2]
[359244794,1745863838781,-400.0,0.00026528,2]
[359244795,1745863838790,-400.0,0.00026528,2]
[359244796,1745863838799,-2227.01761774,0.00026539,2]
[359244797,1745863838811,-509.02245256,0.00026539,2]
[359244798,1745863838820,-400.0,0.00026802,2]
[359244799,1745863838829,-400.0,0.00026802,2]
[359244800,1745863838839,-147.57587254,0.00026802,2]
[359244801,1745863838850,-252.42412746,0.00026802,2]
[359244802,1745863838860,-203.98925848,0.0002694,7]
[359244803,1745863838869,-400.0,0.00027076,2]
[359244804,1745863838878,-400.0,0.00027076,2]
[359244805,1745863838888,-201.9,0.0002735,2]
[359244806,1745863838897,-276.73089294,0.0002735,2]
[359244807,1745863838907,-510.74064,0.00027397,2]
[359244808,1745863838917,-202.324709,0.00027397,120]
[359244809,1745863838927,-160.0,0.00027459,2]
[359244810,1745863838937,-840.59878455,0.00027459,2]
[359244811,1745863838947,-160.0,0.00027459,2]
[359244812,1745863838957,-203.98925848,0.0002746,7]
[359244813,1745863838966,-160.0,0.00027463,2]
[359244814,1745863838976,-300.0,0.00027469,2]
[359244815,1745863838985,-500.0,0.00027473,5]
[359244816,1745863838995,-500.0,0.00027473,5]
[359244817,1745863839006,-485.77826513,0.00027473,5]
[359244818,1745863839016,-500.0,0.00027473,5]
[359244819,1745863839025,-188.98186387,0.00027473,5]
[359244820,1745863839039,-111.01813613,0.00027473,5]
[359244821,1745863839049,-500.0,0.00027473,5]
[359244822,1745863839059,-500.0,0.00027473,2]
[359244823,1745863839068,-500.0,0.00027473,5]
[359244824,1745863839077,-500.0,0.00027473,5]
[359244825,1745863839087,-500.0,0.00027473,5]
[359244826,1745863839097,-502.517959,0.00027473,5]
[359244827,1745863839107,-505.18792042,0.00027473,5]
[359244828,1745863839116,-500.0,0.00027473,5]
[359244829,1745863839126,-500.0,0.00027473,5]
[359244830,1745863839137,-500.0,0.00027473,5]
[359244831,1745863839147,-1578.66623575,0.0002748,2]
[359244832,1745863839159,-229.87782294,0.0002748,2]
[359244833,1745863839169,-1808.54405869,0.0002749,2]
[359244834,1745863839178,-442.04,0.0002749,3]
[359244835,1745863839191,-221.02,0.0002749,3]
[359244836,1745863839200,-663.09,0.0002749,3]
[359244837,1745863839210,-400.0,0.00027498,2]
[359244838,1745863839220,-400.0,0.00027498,2]
[359244839,1745863839229,-400.0,0.00027498,2]
[359244840,1745863839239,-400.0,0.00027498,2]
[359244841,1745863839248,-400.0,0.00027498,2]
[359244842,1745863839257,-400.0,0.00027498,2]
[359244843,1745863839267,-400.0,0.00027498,2]
[359244844,1745863839276,-400.0,0.00027498,2]
[359244845,1745863839424,-400.0,0.00027498,2]
[359244846,1745863839433,-400.0,0.00027498,2]
[359244847,1745863839445,-500.0,0.00027498,2]
[359244848,1745863839454,-400.0,0.00027498,2]
[359244849,1745863839464,-500.0,0.00027498,2]
[359244850,1745863839473,-400.0,0.00027498,2]
[359244851,1745863839482,-400.0,0.00027498,2]
[359244852,1745863839492,-392.90811837,0.00027499,2]
[359244856,1745863840103,-105.66476686,0.00027499,2]
[359244857,1745863840113,-310.9901365,0.00027499,2]
[359244859,1745863840156,-89.0098635,0.00027499,2]
[359244860,1745863840166,-500.0,0.00027499,2]
[359244861,1745863840175,-400.0,0.00027499,2]
[359244862,1745863840185,-500.0,0.00027499,2]
[359244863,1745863840194,-501.60188421,0.00027499,2]
[359244864,1745863840204,-500.0,0.00027499,2]
[359244865,1745863840214,-400.0,0.00027499,2]
[359244866,1745863840223,-400.0,0.00027499,2]
[359244867,1745863840233,-500.0,0.00027499,2]
[359244868,1745863840242,-400.0,0.00027499,2]
[359244869,1745863840251,-400.0,0.00027499,2]
[359244870,1745863840261,-400.0,0.00027499,2]
[359244871,1745863840270,-515.12769916,0.00027499,2]
[359244872,1745863840279,-500.0,0.00027499,2]
[359244873,1745863840289,-500.0,0.00027499,2]
[359244874,1745863840298,-400.0,0.00027499,2]
[359244875,1745863840308,-277.64948975,0.00027499,2]
[359244876,1745863840318,-255.12038607,0.00027499,2]
[359244877,1745863840332,-400.0,0.00027499,2]
[359244878,1745863840341,-400.0,0.00027499,2]
[359244880,1745863840351,-400.0,0.00027499,2]
[359244881,1745863840362,-400.0,0.00027499,2]
[359244882,1745863840371,-400.0,0.00027499,2]
[359244883,1745863840381,-400.0,0.00027499,2]
[359244884,1745863840390,-365.29093027,0.00027499,2]
[359244885,1745863840399,-400.0,0.00027499,2]
[359244886,1745863840409,-400.0,0.00027499,2]
[359244887,1745863840419,-500.0,0.00027499,2]
[359244888,1745863840428,-500.0,0.00027499,2]
[359244889,1745863840438,-400.0,0.00027499,2]
[359244890,1745863840447,-49449.65,0.000275,2]
[359244891,1745863840457,-400.0,0.00027516,2]
[359244892,1745863840467,-218.84889374,0.00027516,2]
[359244893,1745863840476,-400.0,0.00027516,2]
[359244894,1745863840485,-230.22,0.00027516,2]
[359244895,1745863840495,-441.08,0.00027516,2]
[359244896,1745863840505,-403.0,0.00027705,2]
[359244897,1745863840515,-398.7,0.00027772,2]
[359244898,1745863840524,-400.0,0.00027772,2]
[359244899,1745863840534,-400.0,0.00027772,2]
[359244900,1745863840543,-185.19,0.00027772,2]
[359244901,1745863840553,-400.0,0.00027772,2]
[359244902,1745863840562,-443.02,0.00027772,2]
[359244903,1745863840572,-400.0,0.00027772,2]
[359244904,1745863840582,-400.0,0.00027772,2]
[359244905,1745863840591,-400.0,0.00027772,2]
[359244906,1745863840601,-400.0,0.00027773,2]
[359244907,1745863840611,-400.0,0.00027773,2]
[359244908,1745863840620,-400.0,0.00027773,2]
[359244909,1745863840630,-167.43,0.00027773,2]
[359244910,1745863840639,-400.0,0.00027773,2]
[359244911,1745863840648,-417.65,0.00027773,2]
[359244912,1745863840657,-420.86,0.00027773,2]
[359244913,1745863840666,-428.57081658,0.00027773,2]
[359244914,1745863840675,-400.0,0.00027773,2]
[359244915,1745863840684,-400.0,0.00027773,2]
[359244916,1745863840695,-432.79,0.00027773,2]
[359244917,1745863840705,-199.929124,0.0002779,2]
[359244918,1745863840715,-420.0,0.0002786,2]
[359244919,1745863840724,-203.98925848,0.0002798,7]
[359244920,1745863840734,-400.0,0.00028046,2]
[359244921,1745863840744,-400.0,0.00028046,2]
[359244922,1745863840754,-400.0,0.00028046,2]
[359244923,1745863840764,-400.0,0.00028046,2]
[359244924,1745863840773,-400.0,0.00028046,2]
[359244925,1745863840782,-236.74752544,0.00028047,2]
[359244926,1745863840791,-400.0,0.00028047,2]
[359244927,1745863840800,-400.0,0.00028047,2]
[359244928,1745863840810,-400.0,0.00028047,2]